bitfinex/quotes_BTCUSD_20250529
["timestamp","ask_amount","ask_price","bid_price","bid_amount"]
[1748484244766,1.21979814,108130.0,108120.0,0.13769184]
[1748484244973,1.21979813,108130.0,108120.0,0.13769186]
[1748484246061,1.22629889,108130.0,108120.0,0.13769189]
[1748484246275,1.22629889,108130.0,108120.0,0.13769183]
[1748484246480,1.21979812,108130.0,108120.0,0.12904]
[1748484246900,1.21979812,108130.0,108120.0,0.1376918]
[1748484247107,1.22629889,108130.0,108120.0,0.12904]
[1748484247534,1.21979812,108130.0,108120.0,0.12904]
[1748484247958,1.22629889,108130.0,108120.0,0.13769194]
[1748484248169,1.22629889,108130.0,108120.0,0.1376918]
[1748484248444,1.21979812,108130.0,108120.0,0.1376918]
[1748484248679,1.22629889,108130.0,108120.0,0.13769171]
[1748484249138,1.22629889,108130.0,108120.0,0.12904]
[1748484249354,1.22629889,108130.0,108120.0,0.01365175]
[1748484249559,1.22629889,108130.0,108120.0,0.10629175]
[1748484250183,1.21979812,108130.0,108120.0,0.09764]
[1748484250389,1.22629887,108130.0,108120.0,0.10629172]
[1748484250599,1.21979813,108130.0,108120.0,0.09764]
[1748484250831,1.22629888,108130.0,108120.0,0.10629173]
[1748484251048,1.22629888,108130.0,108120.0,0.09764]
[1748484251281,1.22629888,108130.0,108120.0,0.10629171]
[1748484251735,1.21979813,108130.0,108120.0,0.10629164]
[1748484251968,1.21979813,108130.0,108120.0,0.09764]
[1748484252191,1.21979813,108130.0,108120.0,0.1062917]
[1748484252411,1.22629888,108130.0,108120.0,0.09764]
[1748484252634,1.21979813,108130.0,108120.0,0.09764]
[1748484253763,1.21979813,108130.0,108120.0,0.1062915]
[1748484253997,1.22629887,108130.0,108120.0,0.1227914]
[1748484254191,1.22629887,108130.0,108120.0,0.11414]
[1748484254403,1.22629887,108130.0,108120.0,0.005]
[1748484254640,1.21520433,108130.0,108120.0,0.09744]
[1748484254865,1.23559837,108130.0,108120.0,0.09744]
[1748484255065,1.23559837,108130.0,108120.0,0.10609181]
[1748484255288,1.23559837,108130.0,108120.0,0.09744]
[1748484255520,0.8969481,108130.0,108120.0,0.09744]
[1748484255727,1.24209931,108130.0,108120.0,0.10609185]
[1748484255955,1.23559837,108130.0,108120.0,0.09744]
[1748484256181,1.29968953,108130.0,108120.0,0.09744]
[1748484256406,1.32568922,108130.0,108120.0,0.09744]
[1748484256617,1.34869029,108130.0,108120.0,0.09744]
[1748484256814,1.34218922,108130.0,108120.0,0.09744]
[1748484257449,1.32568922,108130.0,108120.0,0.09744]
[1748484258378,1.36480305,108130.0,108120.0,0.09744]
[1748484258602,1.32568922,108130.0,108120.0,0.09744]
[1748484259059,1.32568795,108130.0,108120.0,0.09744]
[1748484259215,1.3321891,108130.0,108120.0,0.005]
[1748484259423,1.32568795,108130.0,108120.0,0.09744]
[1748484259621,1.3321891,108130.0,108120.0,0.09744]
[1748484259835,1.32568795,108130.0,108120.0,0.09744]
[1748484260121,1.33218911,108130.0,108120.0,0.09744]
[1748484260321,1.32568795,108130.0,108120.0,0.09744]
[1748484260936,1.3402288,108130.0,108120.0,0.09744]
[1748484261659,1.67887907,108130.0,108120.0,0.09744]
[1748484261863,1.67867907,108130.0,108120.0,0.09744]
[1748484262293,1.65267828,108130.0,108120.0,0.09744]
[1748484263095,1.63687828,108130.0,108120.0,0.09744]
[1748484263269,1.63686348,108130.0,108120.0,0.09744]
[1748484263510,1.72791743,108130.0,108120.0,0.09744]
[1748484263710,1.64336464,108130.0,108120.0,0.09744]
[1748484263911,1.63686348,108130.0,108120.0,0.09744]
[1748484264116,1.63682348,108130.0,108120.0,0.09744]
[1748484264825,1.64332464,108130.0,108120.0,0.09744]
[1748484265033,1.63682348,108130.0,108120.0,0.09744]
[1748484265476,1.63682348,108130.0,108120.0,0.005]
[1748484265681,1.65202348,108130.0,108120.0,0.09748]
[1748484265895,1.65852464,108130.0,108120.0,0.005]
[1748484266113,1.68450971,108130.0,108120.0,0.09748]
[1748484266324,1.77555987,108130.0,108120.0,0.09748]
[1748484266751,1.7690625,108130.0,108120.0,0.09748]
[1748484266983,1.7755597,108130.0,108120.0,0.09748]
[1748484267200,1.8006597,108130.0,108120.0,0.005]
[1748484267409,1.80065975,108130.0,108120.0,0.005]
[1748484267616,1.80064397,108130.0,108120.0,0.005]
[1748484267830,1.80064377,108130.0,108120.0,0.005]
[1748484268035,1.80064218,108130.0,108120.0,0.005]
[1748484268243,1.03228769,108130.0,108120.0,0.005]
[1748484268456,1.69448823,108130.0,108120.0,0.005]
[1748484268671,1.68799277,108130.0,108120.0,0.005]
[1748484268874,1.69448797,108130.0,108120.0,0.005]
[1748484269782,1.69448718,108130.0,108120.0,0.005]
[1748484270188,1.67928718,108130.0,108120.0,0.005]
[1748484270825,1.67928719,108130.0,108120.0,0.005]
[1748484271842,1.67928654,108130.0,108120.0,0.005]
[1748484272081,1.67927561,108130.0,108120.0,0.005]
[1748484272352,1.67278205,108130.0,108120.0,0.005]
[1748484272566,1.67927561,108130.0,108120.0,0.005]
[1748484272778,1.77032956,108130.0,108120.0,0.005]
[1748484273390,1.7703294,108130.0,108120.0,0.005]
[1748484273807,1.763836,108130.0,108120.0,0.005]
[1748484274011,1.77032947,108130.0,108120.0,0.005]
[1748484274233,1.67927552,108130.0,108120.0,0.005]
[1748484274892,1.67927569,108130.0,108120.0,0.005]
[1748484275521,1.67927586,108130.0,108120.0,0.005]
[1748484275958,1.67927648,108130.0,108120.0,0.005]
[1748484276193,1.66819183,108130.0,108120.0,0.005]
[1748484276415,1.67927079,108130.0,108120.0,0.005]
[1748484277862,1.67927119,108130.0,108120.0,0.005]
[1748484278078,1.67277637,108130.0,108120.0,0.005]
[1748484278524,0.99547583,108130.0,108120.0,0.005]
[1748484278743,1.0313261,108130.0,108120.0,0.0366]
[1748484278962,0.94778435,108130.0,108120.0,0.0366]
[1748484279178,1.22588329,108130.0,108120.0,0.0366]
[1748484279369,1.24042414,108130.0,108120.0,0.0366]
[1748484279622,1.24042416,108130.0,108120.0,0.0366]
[1748484279845,1.24042429,108130.0,108120.0,0.0366]
[1748484280091,1.24042541,108130.0,108120.0,0.0366]
[1748484280542,1.23392886,108130.0,108120.0,0.0366]
[1748484281043,1.24042541,108130.0,108120.0,0.0366]
[1748484281267,1.23392886,108130.0,108120.0,0.12908]
[1748484281753,1.24042807,108130.0,108120.0,0.12908]
[1748484282229,1.24692728,108130.0,108120.0,0.12908]
[1748484283158,1.24042807,108130.0,108120.0,0.12908]
[1748484283392,1.24692679,108130.0,108120.0,0.12908]
[1748484284345,1.24692657,108130.0,108120.0,0.12908]
[1748484284810,0.9017778,108130.0,108120.0,0.12908]
[1748484285031,1.24692659,108130.0,108120.0,0.12908]
[1748484286875,1.24042807,108130.0,108120.0,0.12908]
[1748484287107,1.58557686,108130.0,108120.0,0.12908]
[1748484287343,1.58557686,108130.0,108120.0,0.0366]
[1748484287572,1.24692661,108130.0,108120.0,0.0366]
[1748484288354,1.24680661,108130.0,108120.0,0.0366]
[1748484288557,1.24030807,108130.0,108120.0,0.0366]
[1748484288697,1.24680658,108130.0,108120.0,0.0366]
[1748484289112,0.90815631,108130.0,108120.0,0.0366]
[1748484289315,1.24680658,108130.0,108120.0,0.0366]
[1748484289520,1.27279866,108130.0,108120.0,0.0366]
[1748484289998,1.2663002,108130.0,108120.0,0.0366]
[1748484290203,1.27279863,108130.0,108120.0,0.0366]
[1748484290626,1.27279862,108130.0,108120.0,0.0366]
[1748484291107,0.94320191,108130.0,108120.0,0.0366]
[1748484291248,1.23572191,108130.0,108120.0,0.04523775]
[1748484291473,1.22922349,108130.0,108120.0,0.0452367]
[1748484291648,1.23572135,108130.0,108120.0,0.04523671]
[1748484291863,1.23572135,108130.0,108120.0,0.04523677]
[1748484292062,1.2357192,108130.0,108120.0,0.04523398]
[1748484292308,1.2357192,108130.0,108120.0,0.04523399]
[1748484292458,1.22922349,108130.0,108120.0,0.04523376]
[1748484292887,0.89706893,108130.0,108120.0,0.04523376]
[1748484293100,1.24458757,108130.0,108120.0,0.04523376]
[1748484293333,1.2357192,108130.0,108120.0,0.04523401]
[1748484293759,1.2357192,108130.0,108120.0,0.04523235]
[1748484293970,1.22922349,108130.0,108120.0,0.04523235]
[1748484294175,1.235718,108130.0,108120.0,0.04523247]
[1748484294378,1.235718,108130.0,108120.0,0.0366]
[1748484294583,1.22922349,108130.0,108120.0,0.04523246]
[1748484294788,1.22922349,108130.0,108120.0,0.0366]
[1748484295247,1.24221251,108130.0,108120.0,0.0366]
[1748484295436,1.24221251,108130.0,108120.0,0.04523246]
[1748484295942,1.24221251,108130.0,108120.0,0.04523242]
[1748484296150,1.24221251,108130.0,108120.0,0.0366]
[1748484296352,1.235718,108130.0,108120.0,0.0366]
[1748484296561,1.235718,108130.0,108120.0,0.04523225]
[1748484296730,1.24221157,108130.0,108120.0,0.04523225]
[1748484297869,1.24221157,108130.0,108120.0,0.0366]
[1748484298068,1.24221157,108130.0,108120.0,0.0452303]
[1748484298248,1.24221091,108130.0,108120.0,0.0452303]
[1748484298607,1.24221091,108130.0,108120.0,0.04523035]
[1748484299089,1.24221047,108130.0,108120.0,0.04523035]
[1748484299561,1.2422104,108130.0,108120.0,0.04522988]
[1748484299791,0.943198,108130.0,108120.0,0.04522992]
[1748484300019,1.235558,108130.0,108120.0,0.04522993]
[1748484300231,1.235558,108130.0,108120.0,0.0366]
[1748484300672,0.60454773,108130.0,108120.0,0.0366]
[1748484300904,0.89690773,108130.0,108120.0,0.0366]
[1748484301371,1.235558,108130.0,108120.0,0.04523053]
[1748484301596,1.2352343,108130.0,108120.0,0.0366]
[1748484301816,1.2352343,108130.0,108120.0,0.12884]
[1748484302457,1.2352343,108130.0,108120.0,0.13747204]
[1748484302683,1.2417263,108130.0,108120.0,0.12884]
[1748484302936,1.2417263,108130.0,108120.0,0.13747212]
[1748484303609,1.2352343,108130.0,108120.0,0.12884]
[1748484303833,1.2417263,108130.0,108120.0,0.13747317]
[1748484304059,1.2352343,108130.0,108120.0,0.12884]
[1748484304513,1.24172632,108130.0,108120.0,0.13747323]
[1748484304754,1.2352343,108130.0,108120.0,0.13747324]
[1748484304975,1.2352343,108130.0,108120.0,0.12884]
[1748484305197,1.2152343,108130.0,108120.0,0.13747336]
[1748484305419,1.22172638,108130.0,108120.0,0.13747336]
[1748484305648,1.2152343,108130.0,108120.0,0.13747336]
[1748484305869,1.22172617,108130.0,108120.0,0.13747336]
[1748484306093,1.22172629,108130.0,108120.0,0.13747336]
[1748484306316,1.22172629,108130.0,108120.0,0.13747349]
[1748484306534,1.22172629,108130.0,108120.0,0.13747348]
[1748484307454,1.22172638,108130.0,108120.0,0.12884]
[1748484307660,1.2152343,108130.0,108120.0,0.12884]
[1748484307870,1.2217267,108130.0,108120.0,0.13747456]
[1748484308102,1.2217267,108130.0,108120.0,0.1374746]
[1748484308511,1.22172667,108130.0,108120.0,0.1374746]
[1748484309180,1.22172669,108130.0,108120.0,0.1374746]
[1748484309434,1.2152343,108130.0,108120.0,0.13747462]
[1748484309650,1.22172665,108130.0,108120.0,0.12884]
[1748484309863,1.22172665,108130.0,108120.0,0.1374746]
[1748484310486,1.2152343,108130.0,108120.0,0.12884]
[1748484310723,1.2217268,108130.0,108120.0,0.1374752]
[1748484311589,0.88307653,108130.0,108120.0,0.1374752]
[1748484311808,1.2217268,108130.0,108120.0,0.1374752]
[1748484312239,1.1952343,108130.0,108120.0,0.1374752]
[1748484312488,1.20172694,108130.0,108120.0,0.1374752]
[1748484312698,1.20172694,108130.0,108120.0,0.13747542]
[1748484312900,1.20172694,108130.0,108120.0,0.12884]
[1748484313111,1.20172713,108130.0,108120.0,0.13747558]
[1748484313321,1.20172713,108130.0,108120.0,0.13747554]
[1748484313529,1.20172713,108130.0,108120.0,0.1374756]
[1748484314153,1.1952343,108130.0,108120.0,0.1374756]
[1748484314366,1.20172739,108130.0,108120.0,0.13747596]
[1748484314636,1.1952343,108130.0,108120.0,0.13747597]
[1748484314820,1.1952343,108130.0,108120.0,0.12884]
[1748484315253,1.20172774,108130.0,108120.0,0.13747641]
[1748484315881,0.90936774,108130.0,108120.0,0.13747641]
[1748484316089,1.20152838,108130.0,108120.0,0.13747734]
[1748484316313,1.20152838,108130.0,108120.0,0.13747732]
[1748484316933,1.20152838,108130.0,108120.0,0.13747733]
[1748484317133,1.20152838,108130.0,108120.0,0.13747747]
[1748484317562,1.20152838,108130.0,108120.0,0.13747863]
[1748484318210,1.1950343,108130.0,108120.0,0.13747906]
[1748484318463,1.2015293,108130.0,108120.0,0.13747956]
[1748484318677,1.2015293,108130.0,108120.0,0.13747991]
[1748484318921,1.2015294,108130.0,108120.0,0.13747991]
[1748484319125,1.2014894,108130.0,108120.0,0.13748108]
[1748484319337,1.1814894,108130.0,108120.0,0.13748108]
[1748484320007,1.18149149,108130.0,108120.0,0.13748273]
[1748484320231,1.18149149,108130.0,108120.0,0.13748272]
[1748484320648,1.18149149,108130.0,108120.0,0.13748278]
[1748484320853,1.1749943,108130.0,108120.0,0.12884]
[1748484321058,0.83634403,108130.0,108120.0,0.12884]
[1748484321479,1.18149408,108130.0,108120.0,0.13748578]
[1748484322090,1.1749943,108130.0,108120.0,0.12884]
[1748484322550,1.18149349,108130.0,108120.0,0.13748499]
[1748484322781,1.1749943,108130.0,108120.0,0.13748501]
[1748484322993,1.1749943,108130.0,108120.0,0.12884]
[1748484323220,1.18149349,108130.0,108120.0,0.12884]
[1748484323431,1.1749943,108130.0,108120.0,0.12884]
[1748484324461,1.1749943,108130.0,108120.0,0.13748503]
[1748484324686,0.45317008,108130.0,108120.0,0.37525027]
[1748484324944,0.39066923,108130.0,108120.0,0.46729027]
[1748484325163,0.105128,108130.0,108120.0,0.12864]
[1748484325382,0.09862923,108130.0,108120.0,0.46729027]
[1748484325805,0.52833345,108130.0,108120.0,0.0452433]
[1748484326028,1.50552261,108130.0,108120.0,0.0136433]
[1748484326259,1.16687234,108130.0,108120.0,0.1056833]
[1748484326713,1.57343836,108130.0,108120.0,0.005]
[1748484326921,1.18217279,108130.0,108120.0,0.105686]
[1748484327151,1.16037345,108130.0,108120.0,0.09704]
[1748484327803,1.16687275,108130.0,108120.0,0.09704]
[1748484328030,1.16037345,108130.0,108120.0,0.09704]
[1748484328453,1.16687275,108130.0,108120.0,0.10568625]
[1748484328663,1.16037345,108130.0,108120.0,0.10568628]
[1748484328893,1.16687274,108130.0,108120.0,0.10568631]
[1748484329100,1.16687269,108130.0,108120.0,0.10568631]
[1748484329313,1.16037345,108130.0,108120.0,0.09704]
[1748484329735,1.18813245,108130.0,108120.0,0.09704]
[1748484329955,0.84948218,108130.0,108120.0,0.09704]
[1748484330208,1.18813245,108130.0,108120.0,0.10568583]
[1748484330429,0.89609245,108130.0,108120.0,0.10568583]
[1748484330663,1.19459141,108130.0,108120.0,0.14583109]
[1748484330882,1.18809245,108130.0,108120.0,0.13718583]
[1748484331097,1.19459116,108130.0,108120.0,0.13718583]
[1748484331312,1.18809245,108130.0,108120.0,0.13718583]
[1748484331987,1.18809245,108130.0,108120.0,0.05379053]
[1748484332197,1.18809245,108130.0,108120.0,0.13718583]
[1748484332411,1.19459115,108130.0,108120.0,0.13718583]
[1748484332619,1.18809245,108130.0,108120.0,0.13718583]
[1748484332828,1.18809245,108130.0,108120.0,0.14583046]
[1748484333038,1.18809245,108130.0,108120.0,0.13718583]
[1748484333461,1.18809245,108130.0,108120.0,0.1458304]
[1748484333677,1.18809245,108130.0,108120.0,0.14583033]
[1748484333890,1.19459115,108130.0,108120.0,0.13718583]
[1748484334106,1.18809245,108130.0,108120.0,0.13718583]
[1748484334575,1.19459115,108130.0,108120.0,0.05379067]
[1748484334797,1.18809245,108130.0,108120.0,0.13718583]
[1748484335018,1.18809245,108130.0,108120.0,0.14583063]
[1748484335247,1.19459115,108130.0,108120.0,0.05379069]
[1748484335474,1.18809245,108130.0,108120.0,0.13718583]
[1748484336113,1.19459108,108130.0,108120.0,0.13718583]
[1748484336334,1.18801245,108130.0,108120.0,0.13718583]
[1748484336821,1.18801245,108130.0,108120.0,0.14583061]
[1748484337048,1.18801245,108130.0,108120.0,0.13718583]
[1748484338155,1.19451093,108130.0,108120.0,0.13013052]
[1748484338835,1.1945107,108130.0,108120.0,0.12148583]
[1748484339054,1.19451069,108130.0,108120.0,0.13013018]
[1748484339271,1.18801245,108130.0,108120.0,0.13013018]
[1748484339491,1.1945107,108130.0,108120.0,0.13013018]
[1748484340421,1.1795107,108130.0,108120.0,0.13013018]
[1748484340642,1.17951055,108130.0,108120.0,0.13013]
[1748484340870,1.17951051,108130.0,108120.0,0.13013]
[1748484341102,1.17951074,108130.0,108120.0,0.11433122]
[1748484341559,1.17951074,108130.0,108120.0,0.10568583]
[1748484341814,1.17951074,108130.0,108120.0,0.11433177]
[1748484342319,1.17951074,108130.0,108120.0,0.11433186]
[1748484342524,1.17951053,108130.0,108120.0,0.10568583]
[1748484342792,1.17951047,108130.0,108120.0,0.12993202]
[1748484343056,1.17951024,108130.0,108120.0,0.12128583]
[1748484343281,1.17951024,108130.0,108120.0,0.12993292]
[1748484343719,0.88759024,108130.0,108120.0,0.12993292]
[1748484343941,1.17943024,108130.0,108120.0,0.12993292]
[1748484344167,1.17943024,108130.0,108120.0,0.14633292]
[1748484344451,1.17942987,108130.0,108120.0,0.14633292]
[1748484344668,1.17942987,108130.0,108120.0,0.14633215]
[1748484345338,1.17938987,108130.0,108120.0,0.14633215]
[1748484346005,1.17939003,108130.0,108120.0,0.14633262]
[1748484347382,1.17939003,108130.0,108120.0,0.14633249]
[1748484347601,1.31246578,108130.0,108120.0,0.14633249]
[1748484348060,1.31246585,108130.0,108120.0,0.14633256]
[1748484348299,1.31246583,108130.0,108120.0,0.1463325]
[1748484348528,1.31246583,108130.0,108120.0,0.14633251]
[1748484348967,1.3059682,108130.0,108120.0,0.13744583]
[1748484349202,1.31246581,108130.0,108120.0,0.14609243]
[1748484349416,1.31246575,108130.0,108120.0,0.13744583]
[1748484349653,1.3059682,108130.0,108120.0,0.04564583]
[1748484349877,1.31246586,108130.0,108120.0,0.1296926]
[1748484350151,1.31246594,108130.0,108120.0,0.12969284]
[1748484350616,1.31246594,108130.0,108120.0,0.0378929]
[1748484350861,1.74675816,108130.0,108120.0,0.10544583]
[1748484351116,1.85981454,108130.0,108120.0,0.10544583]
[1748484351338,1.87541454,108130.0,108120.0,0.10544583]
[1748484351556,1.87541004,108130.0,108120.0,0.10544583]
[1748484351783,1.87541004,108130.0,108120.0,0.01364583]
[1748484352007,1.87541004,108130.0,108080.0,0.0203]
[1748484352008,0.54353348,108090.0,108080.0,0.0203]
[1748484352243,1.2649577,108090.0,108080.0,0.1121]
[1748484352478,1.27145289,108090.0,108080.0,0.1121]
[1748484352699,1.29922089,108090.0,108080.0,0.1121]
[1748484353124,1.29922089,108090.0,108080.0,0.1151]
[1748484353342,1.63892027,108090.0,108080.0,0.0263]
[1748484353572,1.63242508,108090.0,108080.0,0.1181]
[1748484353783,1.29277481,108090.0,108080.0,0.1121]
[1748484354011,0.96060194,108090.0,108080.0,0.1121]
[1748484354230,1.51232372,108090.0,108080.0,0.0968]
[1748484354452,1.24765172,108090.0,108080.0,0.0968]
[1748484354666,1.24117413,108090.0,108080.0,0.0968]
[1748484354885,1.22627413,108090.0,108080.0,0.0968]
[1748484355093,1.23275178,108090.0,108080.0,0.0968]
[1748484355953,1.22627413,108090.0,108080.0,0.0968]
[1748484356192,1.23274634,108090.0,108080.0,0.0968]
[1748484356405,1.23274631,108090.0,108080.0,0.0968]
[1748484356829,1.22627413,108090.0,108080.0,0.0968]
[1748484357740,1.22627413,108090.0,108080.0,0.005]
[1748484357993,1.49742372,108090.0,108080.0,0.09684]
[1748484358207,1.22627413,108090.0,108080.0,0.09684]
[1748484358419,1.49742372,108090.0,108080.0,0.09684]
[1748484358632,1.60467767,108090.0,108080.0,0.09684]
[1748484358845,1.52009145,108090.0,108080.0,0.09684]
[1748484359047,1.49742372,108090.0,108080.0,0.09684]
[1748484359476,1.51909152,108090.0,108080.0,0.09684]
[1748484359900,1.50389152,108090.0,108080.0,0.09684]
[1748484360115,1.49742372,108090.0,108080.0,0.09684]
[1748484360328,1.50389149,108090.0,108080.0,0.09684]
[1748484360546,1.49742372,108090.0,108080.0,0.09684]
[1748484360772,1.54548921,108090.0,108080.0,0.09684]
[1748484360989,1.50389149,108090.0,108080.0,0.09684]
[1748484361422,0.54262762,108080.0,108070.0,0.39644]
[1748484361627,0.90483116,108080.0,108070.0,0.52038]
[1748484362534,0.93260316,108080.0,108070.0,0.52038]
[1748484362756,0.93260316,108080.0,108070.0,0.52238]
[1748484364441,0.93260316,108080.0,108070.0,0.43054]
[1748484364651,0.93260316,108080.0,108070.0,0.52238]
[1748484365459,0.93260316,108080.0,108070.0,0.50588]
[1748484365893,0.93260316,108080.0,108070.0,0.52168]
[1748484366268,1.22428316,108080.0,108070.0,0.52168]
[1748484368062,0.95313357,108080.0,108070.0,0.52168]
[1748484368389,1.22428316,108080.0,108070.0,0.52168]
[1748484368816,1.19651116,108080.0,108070.0,0.52168]
[1748484369248,0.92536157,108080.0,108070.0,0.52168]
[1748484369475,0.92536157,108080.0,108070.0,0.42984]
[1748484369686,0.92536157,108080.0,108070.0,0.52168]
[1748484370313,1.19651116,108080.0,108070.0,0.52168]
[1748484371852,0.92536157,108080.0,108070.0,0.52168]
[1748484372092,1.19651116,108080.0,108070.0,0.52168]
[1748484378807,1.20298696,108080.0,108070.0,0.52168]
[1748484379692,1.20298696,108080.0,108070.0,0.42984]
[1748484379931,1.20298696,108080.0,108070.0,0.50572]
[1748484380416,1.20298696,108080.0,108070.0,0.52072]
[1748484380640,1.19651116,108080.0,108070.0,0.52072]
[1748484380860,1.20299337,108080.0,108070.0,0.52072]
[1748484382238,1.20300861,108080.0,108070.0,0.52072]
[1748484382958,1.20300987,108080.0,108070.0,0.52072]
[1748484383192,1.20300987,108080.0,108070.0,0.42904]
[1748484383425,1.20300992,108080.0,108070.0,0.50572]
[1748484383648,1.20300999,108080.0,108070.0,0.50572]
[1748484383867,1.20301078,108080.0,108070.0,0.50572]
[1748484384112,0.92536157,108080.0,108070.0,0.50572]
[1748484384331,1.1965236,108080.0,108070.0,0.52162]
[1748484384559,1.20302323,108080.0,108070.0,0.52162]
[1748484385264,1.1965236,108080.0,108070.0,0.52162]
[1748484385497,1.20302349,108080.0,108070.0,0.52162]
[1748484385724,1.20302349,108080.0,108070.0,0.12518]
[1748484385951,1.20302347,108080.0,108070.0,0.10928]
[1748484386173,1.1965236,108080.0,108070.0,0.10928]
[1748484386391,1.20302347,108080.0,108070.0,0.10928]
[1748484387320,1.1965236,108080.0,108070.0,0.10928]
[1748484387540,1.20302428,108080.0,108070.0,0.10928]
[1748484387745,1.20302571,108080.0,108070.0,0.12478]
[1748484388212,1.20302564,108080.0,108070.0,0.12478]
[1748484388865,1.20302559,108080.0,108070.0,0.12478]
[1748484389087,1.1965236,108080.0,108070.0,0.12478]
[1748484389302,1.20302559,108080.0,108070.0,0.12478]
[1748484389932,1.20302559,108080.0,108070.0,0.0331]
[1748484390157,1.20302559,108080.0,108070.0,0.12478]
[1748484391367,0.64018352,108080.0,108070.0,0.12478]
[1748484391604,1.20278561,108080.0,108070.0,0.12478]
[1748484392049,1.2027856,108080.0,108070.0,0.12478]
[1748484392496,1.20278544,108080.0,108070.0,0.12478]
[1748484392732,1.20278529,108080.0,108070.0,0.12478]
[1748484392958,1.2938393,108080.0,108070.0,0.12478]
[1748484393203,1.20278535,108080.0,108070.0,0.12478]
[1748484393431,1.20278533,108080.0,108070.0,0.12478]
[1748484393663,1.20278538,108080.0,108070.0,0.12478]
[1748484394323,1.20278541,108080.0,108070.0,0.12478]
[1748484395691,0.93162338,108080.0,108070.0,0.12478]
[1748484395938,1.21166329,108080.0,108070.0,0.12478]
[1748484396396,1.20516131,108080.0,108070.0,0.12478]
[1748484396850,1.21166329,108080.0,108070.0,0.12478]
[1748484397043,1.21166332,108080.0,108070.0,0.12478]
[1748484397517,1.20278561,108080.0,108070.0,0.12478]
[1748484397988,1.20278563,108080.0,108070.0,0.12478]
[1748484398204,1.1962836,108080.0,108070.0,0.12478]
[1748484398441,1.20278567,108080.0,108070.0,0.12478]
[1748484398878,1.20278564,108080.0,108070.0,0.12478]
[1748484399630,1.20278563,108080.0,108070.0,0.12478]
[1748484400273,1.2027856,108080.0,108070.0,0.12478]
[1748484401326,1.20278557,108080.0,108070.0,0.12478]
[1748484402224,1.1962836,108080.0,108070.0,0.12478]
[1748484402426,1.20278553,108080.0,108070.0,0.12478]
[1748484403044,1.2027855,108080.0,108070.0,0.12478]
[1748484403671,1.1962836,108080.0,108070.0,0.12478]
[1748484404578,1.20278546,108080.0,108070.0,0.12478]
[1748484405436,1.1962836,108080.0,108070.0,0.12478]
[1748484405665,1.20278548,108080.0,108070.0,0.12478]
[1748484406967,1.21166307,108080.0,108070.0,0.12478]
[1748484408314,1.21166303,108080.0,108070.0,0.12478]
[1748484410292,1.21166296,108080.0,108070.0,0.12478]
[1748484410510,1.21166297,108080.0,108070.0,0.12478]
[1748484411134,1.21166295,108080.0,108070.0,0.12478]
[1748484412937,1.20516112,108080.0,108070.0,0.12478]
[1748484413146,1.21166297,108080.0,108070.0,0.12478]
[1748484413361,0.93399909,108080.0,108070.0,0.12478]
[1748484413591,1.21166295,108080.0,108070.0,0.12478]
[1748484413807,1.21166298,108080.0,108070.0,0.0331]
[1748484414010,1.21166298,108080.0,108070.0,0.09348]
[1748484414643,1.21166297,108080.0,108070.0,0.09348]
[1748484416009,1.20516111,108080.0,108070.0,0.09348]
[1748484416221,1.21166326,108080.0,108070.0,0.09348]
[1748484416433,1.20516111,108080.0,108070.0,0.09348]
[1748484416640,1.21166325,108080.0,108070.0,0.09348]
[1748484416856,0.94050122,108080.0,108070.0,0.09348]
[1748484417070,1.21166325,108080.0,108070.0,0.11008]
[1748484417736,1.21166327,108080.0,108070.0,0.11008]
[1748484418821,1.20516111,108080.0,108070.0,0.11008]
[1748484419040,1.21166372,108080.0,108070.0,0.11008]
[1748484420904,1.21166386,108080.0,108070.0,0.11008]
[1748484421155,1.21166388,108080.0,108070.0,0.11008]
[1748484421657,1.20516181,108080.0,108070.0,0.11008]
[1748484421881,1.21166402,108080.0,108070.0,0.11008]
[1748484422127,1.20516181,108080.0,108070.0,0.11008]
[1748484422306,1.21166402,108080.0,108070.0,0.11008]
[1748484422562,1.20516181,108080.0,108070.0,0.11008]
[1748484423502,1.2116642,108080.0,108070.0,0.11008]
[1748484423731,1.21166417,108080.0,108070.0,0.11008]
[1748484424380,1.20516181,108080.0,108070.0,0.11008]
[1748484424914,1.21166417,108080.0,108070.0,0.11008]
[1748484425128,1.21166417,108080.0,108070.0,0.12598]
[1748484425846,1.21166408,108080.0,108070.0,0.12598]
[1748484426099,0.64255925,108080.0,108070.0,0.12598]
[1748484426604,0.93363925,108080.0,108070.0,0.12598]
[1748484426853,0.64255925,108080.0,108070.0,0.12598]
[1748484427111,0.94014117,108080.0,108070.0,0.12598]
[1748484427357,0.93363925,108080.0,108070.0,0.12598]
[1748484428074,0.94014115,108080.0,108070.0,0.12598]
[1748484428503,0.93363925,108080.0,108070.0,0.12598]
[1748484428795,0.94014113,108080.0,108070.0,0.12598]
[1748484428997,1.21130314,108080.0,108070.0,0.12598]
[1748484429290,1.20480128,108080.0,108070.0,0.12598]
[1748484429522,0.93363925,108080.0,108070.0,0.12598]
[1748484429743,0.64255925,108080.0,108070.0,0.12598]
[1748484430049,0.94009918,108080.0,108070.0,0.12598]
[1748484430256,0.49366762,108080.0,108070.0,0.39714203]
[1748484431538,0.50016882,108080.0,108070.0,0.39714203]
[1748484431759,0.49366762,108080.0,108070.0,0.39714203]
[1748484431971,0.49366762,108080.0,108070.0,0.46482806]
[1748484432184,0.20262762,108080.0,108070.0,0.46482806]
[1748484432445,0.49362762,108080.0,108070.0,0.46482806]
[1748484433289,0.20262762,108080.0,108070.0,0.12598]
[1748484433509,0.49362762,108080.0,108070.0,0.12598]
[1748484433749,0.93002436,108080.0,108070.0,0.12598]
[1748484433959,0.58468157,108080.0,108070.0,0.0345]
[1748484434174,0.59117667,108080.0,108070.0,0.12598]
[1748484434387,0.59117676,108080.0,108070.0,0.12598]
[1748484434599,0.58468157,108080.0,108070.0,0.12598]
[1748484434851,0.59117676,108080.0,108070.0,0.12598]
[1748484435895,0.59117658,108080.0,108070.0,0.12598]
[1748484436102,0.59117637,108080.0,108070.0,0.12598]
[1748484436312,0.58468157,108080.0,108070.0,0.12598]
[1748484436519,0.59117637,108080.0,108070.0,0.12598]
[1748484437352,0.59117623,108080.0,108070.0,0.0345]
[1748484437567,0.93002429,108080.0,108070.0,0.0345]
[1748484437781,0.92352963,108080.0,108070.0,0.11008]
[1748484437989,0.93002433,108080.0,108070.0,0.11008]
[1748484438195,0.95779648,108080.0,108070.0,0.11008]
[1748484438409,0.95779628,108080.0,108070.0,0.11008]
[1748484439406,0.95779629,108080.0,108070.0,0.11008]